fUSD/lending_fUSD_20240624
["ID","MTS","AMOUNT","RATE_DAILY","PERIOD"]
[330289522,1719234649457,-507.36,0.00019452,4]
[330289523,1719234649466,-500.0,0.00019452,4]
[330289524,1719234649476,-500.0,0.00019452,4]
[330289525,1719234649485,-1022.66,0.00019452,4]
[330289526,1719234649495,-500.0,0.00019452,4]
[330289527,1719234649504,-500.0,0.00019452,4]
[330289528,1719234649513,-4095.82,0.00019452,4]
[330289529,1719234649527,-500.0,0.00019452,4]
[330289530,1719234649536,-500.0,0.00019452,4]
[330289531,1719234649546,-670.27,0.00019452,4]
[330289532,1719234649555,-500.0,0.00019452,4]
[330289533,1719234649566,-587.18,0.00019452,4]
[330289534,1719234649575,-500.0,0.00019452,4]
[330289535,1719234649585,-500.0,0.00019452,4]
[330289536,1719234649594,-500.0,0.00019452,4]
[330289537,1719234649605,-500.0,0.00019452,4]
[330289538,1719234649615,-500.0,0.00019452,4]
[330289539,1719234649626,-599.34,0.00019452,4]
[330289540,1719234649636,-1195.25,0.00019452,4]
[330289541,1719234649645,-833.51,0.00019452,4]
[330289542,1719234649654,-675.38,0.00019452,4]
[330289543,1719234649663,-500.0,0.00019452,4]
[330289544,1719234649672,-1029.66,0.00019452,4]
[330289545,1719234649682,-500.0,0.00019452,4]
[330289546,1719234649691,-500.0,0.00019452,4]
[330289547,1719234649700,-500.0,0.00019452,4]
[330289548,1719234649709,-599.32,0.00019452,4]
[330289549,1719234649718,-500.0,0.00019452,4]
[330289550,1719234649728,-751.48,0.00019452,4]
[330289551,1719234649737,-504.75,0.00019452,4]
[330289552,1719234649746,-622.88,0.00019452,4]
[330289553,1719234649757,-812.04,0.00019452,4]
[330289554,1719234649766,-500.0,0.00019452,4]
[330289555,1719234649776,-500.0,0.00019452,4]
[330289556,1719234649785,-1838.7,0.00019452,4]
[330289557,1719234649795,-500.0,0.00019452,4]
[330289558,1719234649804,-732.02,0.00019452,4]
[330289559,1719234649813,-500.0,0.00019452,4]
[330289560,1719234649822,-548.92,0.00019452,4]
[330289561,1719234649832,-500.0,0.00019452,4]
[330289562,1719234649841,-500.0,0.00019452,4]
[330289563,1719234649850,-500.0,0.00019452,4]
[330289564,1719234649860,-1104.05,0.00019452,4]
[330289565,1719234649869,-505.32708746,0.00019452,4]
[330289566,1719234649879,-500.0,0.00019452,4]
[330289567,1719234649889,-790.0,0.00019452,4]
[330289568,1719234649898,-500.0,0.00019452,4]
[330289569,1719234649907,-500.0,0.00019452,4]
[330289570,1719234649916,-950.44,0.00019452,4]
[330289571,1719234649926,-500.0,0.00019452,4]
[330289572,1719234649935,-775.48,0.00019452,4]
[330289573,1719234649944,-3276.0,0.00019452,4]
[330289574,1719234649953,-500.0,0.00019452,4]
[330289575,1719234649962,-713.29,0.00019452,4]
[330289576,1719234649971,-500.0,0.00019452,4]
[330289577,1719234649980,-500.0,0.00019452,4]
[330289578,1719234649989,-500.0,0.00019452,4]
[330289579,1719234649999,-500.0,0.00019452,4]
[330289580,1719234650008,-803.86,0.00019452,4]
[330289581,1719234650017,-832.62,0.00019452,4]
[330289582,1719234650027,-500.0,0.00019452,4]
[330289583,1719234650036,-627.20555874,0.00019452,4]
[330289584,1719234650046,-832.67,0.00019452,4]
[330289585,1719234650055,-997.41,0.00019452,4]
[330289586,1719234650066,-689.81,0.00019452,4]
[330289587,1719234650075,-500.0,0.00019452,4]
[330289588,1719234650085,-500.0,0.00019452,4]
[330289589,1719234650094,-500.0,0.00019452,4]
[330289590,1719234650104,-1136.57,0.00019452,4]
[330289591,1719234650113,-594.74,0.00019452,4]
[330289592,1719234650124,-500.0,0.00019452,4]
[330289593,1719234650134,-500.0,0.00019452,4]
[330289594,1719234650144,-500.0,0.00019452,4]
[330289595,1719234650154,-556.0,0.00019452,4]
[330289596,1719234650163,-500.0,0.00019452,4]
[330289597,1719234650173,-500.0,0.00019452,4]
[330289598,1719234650183,-514.51143214,0.00019452,4]
[330289599,1719234650192,-2120.74,0.00019452,4]
[330289600,1719234650202,-500.0,0.00019452,4]
[330289601,1719234650212,-525.1038481,0.00019452,4]
[330289602,1719234650221,-1028.46,0.00019452,4]
[330289603,1719234650231,-500.0,0.00019452,4]
[330289604,1719234650240,-170.059563,0.00019452,2]
[330289605,1719234650250,-500.0,0.00019452,4]
[330289606,1719234650259,-747.27,0.00019452,4]
[330289607,1719234650269,-622.5,0.00019452,4]
[330289608,1719234650279,-500.0,0.00019452,4]
[330289609,1719234650288,-500.0,0.00019452,4]
[330289610,1719234650298,-1256.7,0.00019452,4]
[330289611,1719234650308,-170.059563,0.00019452,2]
[330289612,1719234650318,-500.0,0.00019452,4]
[330289613,1719234650327,-500.0,0.00019452,4]
[330289614,1719234650337,-1233.58,0.00019452,4]
[330289615,1719234650347,-1155.94,0.00019452,4]
[330289616,1719234650356,-500.0,0.00019452,4]
[330289617,1719234650366,-825.41,0.00019452,4]
[330289618,1719234650376,-1536.4,0.00019452,4]
[330289619,1719234650386,-500.0,0.00019452,4]
[330289620,1719234650396,-500.0,0.00019452,4]
[330289621,1719234650406,-616.11,0.00019452,4]
[330289622,1719234650415,-766.48,0.00019452,4]
[330289623,1719234650425,-500.0,0.00019452,4]
[330289624,1719234650435,-698.01,0.00019452,4]
[330289625,1719234650445,-1447.35,0.00019452,4]
[330289626,1719234650455,-1293.45,0.00019452,4]
[330289627,1719234650464,-1214.1,0.00019452,4]
[330289628,1719234650475,-500.0,0.00019452,4]
[330289629,1719234650484,-500.0,0.00019452,4]
[330289630,1719234650493,-500.0,0.00019452,4]
[330289631,1719234650503,-500.0,0.00019452,4]
[330289632,1719234650512,-462.48085098,0.00019452,4]
[330289633,1719234650525,-1161.02,0.00019452,4]
[330289634,1719234650535,-500.0,0.00019452,4]
[330289635,1719234650544,-500.0,0.00019452,4]
[330289636,1719234650554,-546.3,0.00019452,4]
[330289637,1719234650564,-500.0,0.00019452,4]
[330289638,1719234650574,-1083.99,0.00019452,4]
[330289639,1719234650584,-1624.6,0.00019452,4]
[330289640,1719234650594,-500.0,0.00019452,2]
[330289641,1719234650609,-1522.1,0.00019452,4]
[330289642,1719234650618,-500.0,0.00019452,4]
[330289643,1719234650629,-500.0,0.00019452,4]
[330289644,1719234650639,-746.16,0.00019452,4]
[330289645,1719234650649,-841.88,0.00019452,4]
[330289646,1719234650658,-1918.02,0.00019452,4]
[330289647,1719234650668,-1003.97,0.00019452,4]
[330289648,1719234650677,-500.0,0.00019452,4]
[330289649,1719234650687,-500.0,0.00019452,4]
[330289650,1719234650697,-500.0,0.00019452,4]
[330289651,1719234650706,-2470.72,0.00019452,4]
[330289652,1719234650716,-822.29,0.00019452,4]
[330289653,1719234650726,-1351.09,0.00019452,4]
[330289654,1719234650736,-1545.77,0.00019452,4]
[330289655,1719234650745,-1773.63,0.00019452,4]
[330289656,1719234650756,-1647.16,0.00019452,4]
[330289657,1719234650765,-500.0,0.00019452,4]
[330289658,1719234650775,-500.0,0.00019452,4]
[330289659,1719234650784,-536.58,0.00019452,4]
[330289660,1719234650794,-500.0,0.00019452,4]
[330289661,1719234650803,-627.83,0.00019452,4]
[330289662,1719234650813,-170.059563,0.000196,2]
[330289663,1719234650823,-170.059563,0.000196,2]
[330289664,1719234650832,-15522.40050415,0.00019621,2]
[330289665,1719234650842,-192.18062288,0.00019661,2]
[330289666,1719234650851,-299.95493497,0.00019661,2]
[330289667,1719234650860,-159.4072037,0.00019699,2]
[330289668,1719234650870,-237.89260728,0.00019724,2]
[330289669,1719234650879,-150.0,0.00019725,7]
[330289670,1719234650889,-500.0,0.00019726,4]
[330289671,1719234650898,-675.73,0.00019726,4]
[330289672,1719234650907,-500.0,0.00019726,4]
[330289673,1719234650917,-500.0,0.00019726,4]
[330289674,1719234650926,-500.0,0.00019726,4]
[330289675,1719234650935,-500.0,0.00019726,4]
[330289676,1719234650946,-890.58,0.00019726,4]
[330289677,1719234650955,-615.75,0.00019726,4]
[330289678,1719234650964,-500.0,0.00019726,4]
[330289679,1719234650974,-500.0,0.00019726,4]
[330289680,1719234650983,-563.76158586,0.00019726,4]
[330289681,1719234650993,-500.0,0.00019726,4]
[330289682,1719234651003,-605.34,0.00019726,4]
[330289683,1719234651012,-500.0,0.00019726,4]
[330289684,1719234651022,-870.76,0.00019726,4]
[330289685,1719234651032,-500.0,0.00019726,4]
[330289686,1719234651042,-500.0,0.00019726,4]
[330289687,1719234651051,-500.0,0.00019726,4]
[330289688,1719234651061,-500.0,0.00019726,4]
[330289689,1719234651070,-500.0,0.00019726,4]
[330289690,1719234651080,-500.0,0.00019726,4]
[330289691,1719234651090,-601.49,0.00019726,4]
[330289692,1719234651099,-500.0,0.00019726,4]
[330289693,1719234651109,-812.19,0.00019726,4]
[330289694,1719234651118,-500.0,0.00019726,4]
[330289695,1719234651129,-925.86,0.00019726,4]
[330289696,1719234651138,-500.0,0.00019726,4]
[330289697,1719234651148,-611.19,0.00019726,4]
[330289698,1719234651157,-796.24,0.00019726,4]
[330289699,1719234651166,-546.2015207,0.00019726,4]
[330289700,1719234651176,-738.65,0.00019726,4]
[330289701,1719234651187,-765.19,0.00019726,4]
[330289702,1719234651197,-500.0,0.00019726,4]
[330289703,1719234651207,-500.0,0.00019726,4]
[330289704,1719234651217,-500.0,0.00019726,4]
[330289705,1719234651227,-500.0,0.00019726,4]
[330289706,1719234651237,-500.0,0.00019726,4]
[330289707,1719234651247,-500.0,0.00019726,4]
[330289708,1719234651258,-500.0,0.00019726,4]
[330289709,1719234651268,-500.0,0.00019726,4]
[330289710,1719234651508,-500.0,0.00019726,4]
[330289711,1719234651518,-500.0,0.00019726,4]
[330289712,1719234651532,-500.0,0.00019726,4]
[330289713,1719234651542,-500.0,0.00019726,4]
[330289714,1719234651551,-833.9,0.00019726,4]
[330289715,1719234651560,-500.0,0.00019726,4]
[330289716,1719234651570,-500.0,0.00019726,4]
[330289717,1719234651580,-500.0,0.00019726,4]
[330289718,1719234651589,-500.0,0.00019726,4]
[330289719,1719234651599,-500.0,0.00019726,4]
[330289720,1719234651611,-500.0,0.00019726,4]
[330289721,1719234651621,-500.0,0.00019726,4]
[330289722,1719234651631,-500.0,0.00019726,4]
[330289723,1719234651640,-510.71,0.00019726,4]
[330289724,1719234651650,-571.75,0.00019726,4]
[330289725,1719234651659,-896.69,0.00019726,4]
[330289726,1719234651669,-500.0,0.00019726,4]
[330289727,1719234651678,-500.0,0.00019726,4]
[330289728,1719234651687,-500.0,0.00019726,4]
[330289729,1719234651697,-500.0,0.00019726,4]
[330289730,1719234651706,-500.0,0.00019726,4]
[330289731,1719234651715,-500.0,0.00019726,4]
[330289732,1719234651724,-1002.68,0.00019726,4]
[330289733,1719234651733,-500.0,0.00019726,4]
[330289734,1719234651743,-500.0,0.00019726,4]
[330289735,1719234651752,-1386.44,0.00019726,4]
[330289736,1719234651761,-500.0,0.00019726,4]
[330289737,1719234651771,-500.0,0.00019726,4]
[330289738,1719234651780,-500.0,0.00019726,4]
[330289739,1719234651790,-500.0,0.00019726,4]
[330289740,1719234651799,-500.0,0.00019726,4]
[330289741,1719234651808,-500.0,0.00019726,4]
[330289742,1719234651817,-500.0,0.00019726,4]
[330289743,1719234651827,-500.0,0.00019726,4]
[330289744,1719234651836,-500.0,0.00019726,4]
[330289745,1719234651845,-500.0,0.00019726,4]
[330289746,1719234651855,-500.0,0.00019726,4]
[330289747,1719234651864,-500.0,0.00019726,4]
[330289748,1719234651874,-500.0,0.00019726,4]
[330289749,1719234651883,-500.0,0.00019726,4]
[330289750,1719234651892,-500.0,0.00019726,4]
[330289751,1719234651902,-500.0,0.00019726,4]
[330289752,1719234651911,-500.0,0.00019726,4]
[330289753,1719234651920,-500.0,0.00019726,4]
[330289754,1719234651930,-500.0,0.00019726,4]
[330289755,1719234651939,-510.58,0.00019726,4]
[330289756,1719234651948,-500.0,0.00019726,4]
[330289757,1719234651958,-500.0,0.00019726,4]
[330289758,1719234651967,-500.0,0.00019726,4]
[330289759,1719234651977,-500.0,0.00019726,4]
[330289760,1719234651986,-500.0,0.00019726,4]
[330289761,1719234651995,-500.0,0.00019726,4]
[330289762,1719234652005,-500.0,0.00019726,4]
[330289763,1719234652014,-389.16,0.00019726,4]
[330289764,1719234652023,-500.0,0.00019726,4]
[330289765,1719234652033,-500.0,0.00019726,4]
[330289766,1719234652042,-500.0,0.00019726,4]
[330289767,1719234652052,-500.0,0.00019726,4]
[330289768,1719234652061,-500.0,0.00019726,4]
[330289769,1719234652070,-500.0,0.00019726,4]
[330289770,1719234652079,-500.0,0.00019726,4]
[330289771,1719234652089,-500.0,0.00019726,4]
[330289772,1719234652098,-500.0,0.00019726,4]
[330289773,1719234652108,-610.4,0.00019726,4]
[330289774,1719234652118,-500.0,0.00019726,4]
[330289775,1719234652128,-500.0,0.00019726,4]
[330289776,1719234652138,-500.0,0.00019726,4]
[330289777,1719234652148,-500.0,0.00019726,4]
[330289778,1719234652157,-500.0,0.00019726,4]
[330289779,1719234652167,-578.19,0.00019726,4]
[330289780,1719234652176,-500.0,0.00019726,4]
[330289781,1719234652186,-500.0,0.00019726,4]
[330289782,1719234652195,-500.0,0.00019726,4]
[330289783,1719234652205,-500.0,0.00019726,4]
[330289784,1719234652214,-500.0,0.00019726,4]
[330289785,1719234652224,-500.0,0.00019726,4]
[330289786,1719234652233,-500.0,0.00019726,4]
[330289787,1719234652243,-500.0,0.00019726,4]
[330289788,1719234652253,-500.0,0.00019726,4]
[330289789,1719234652263,-500.0,0.00019726,4]
[330289790,1719234652273,-955.98,0.00019726,4]
[330289791,1719234652282,-500.0,0.00019726,4]
[330289792,1719234652292,-500.0,0.00019726,4]
[330289793,1719234652302,-500.0,0.00019726,4]
[330289794,1719234652311,-500.0,0.00019726,4]
[330289795,1719234652320,-500.0,0.00019726,4]
[330289796,1719234652329,-500.0,0.00019726,4]
[330289797,1719234652338,-500.0,0.00019726,4]
[330289798,1719234652347,-500.0,0.00019726,4]
[330289799,1719234652357,-500.0,0.00019726,4]
[330289800,1719234652367,-500.0,0.00019726,4]
[330289801,1719234652377,-500.0,0.00019726,4]
[330289802,1719234652387,-500.0,0.00019726,4]
[330289803,1719234652396,-500.0,0.00019726,4]
[330289804,1719234652405,-531.72907178,0.00019726,4]
[330289805,1719234652414,-500.0,0.00019726,4]
[330289806,1719234652423,-500.0,0.00019726,4]
[330289807,1719234652432,-500.0,0.00019726,4]
[330289808,1719234652442,-500.0,0.00019726,4]
[330289809,1719234652451,-500.0,0.00019726,4]
[330289810,1719234652460,-500.0,0.00019726,4]
[330289811,1719234652469,-500.0,0.00019726,4]
[330289812,1719234652479,-500.0,0.00019726,4]
[330289813,1719234652488,-500.0,0.00019726,4]
[330289814,1719234652497,-500.0,0.00019726,4]
[330289815,1719234652507,-500.0,0.00019726,4]
[330289816,1719234652516,-500.0,0.00019726,4]
[330289817,1719234652530,-500.0,0.00019726,4]
[330289818,1719234652539,-721.78,0.00019726,4]
[330289819,1719234652549,-500.0,0.00019726,4]
[330289820,1719234652558,-500.0,0.00019726,4]
[330289821,1719234652569,-500.0,0.00019726,4]
[330289822,1719234652578,-500.0,0.00019726,4]
[330289823,1719234652587,-500.0,0.00019726,4]
[330289824,1719234652596,-500.0,0.00019726,4]
[330289825,1719234652609,-500.0,0.00019726,4]
[330289826,1719234652619,-500.0,0.00019726,4]
[330289827,1719234652631,-500.0,0.00019726,4]
[330289828,1719234652640,-500.0,0.00019726,4]
[330289829,1719234652649,-500.0,0.00019726,4]
[330289830,1719234652658,-500.0,0.00019726,4]
[330289831,1719234652670,-500.0,0.00019726,4]
[330289832,1719234652680,-500.0,0.00019726,4]
[330289833,1719234652689,-500.0,0.00019726,4]
[330289834,1719234652699,-500.0,0.00019726,4]
[330289835,1719234652708,-500.0,0.00019726,4]
[330289836,1719234652718,-500.0,0.00019726,4]
[330289837,1719234652727,-151.0,0.00019726,2]
[330289838,1719234652738,-961.17,0.00019726,4]
[330289839,1719234652747,-559.62,0.00019726,4]
[330289840,1719234652757,-500.0,0.00019726,4]
[330289841,1719234652767,-500.0,0.00019726,4]
[330289842,1719234652777,-500.0,0.00019726,4]
[330289843,1719234652787,-500.0,0.00019726,4]
[330289844,1719234652796,-500.0,0.00019726,4]
[330289845,1719234652805,-500.0,0.00019726,4]
[330289846,1719234652815,-500.0,0.00019726,4]
[330289847,1719234652824,-500.0,0.00019726,4]
[330289848,1719234652834,-503.91,0.00019726,4]
[330289849,1719234652843,-500.0,0.00019726,4]
[330289850,1719234652852,-500.0,0.00019726,4]
[330289851,1719234652862,-641.94,0.00019726,4]
[330289852,1719234652872,-500.0,0.00019726,4]
[330289853,1719234652884,-500.0,0.00019726,4]
[330289854,1719234652894,-946.9,0.00019726,4]
[330289855,1719234652904,-2789.32,0.00019726,4]
[330289856,1719234652915,-412.90076845,0.00019726,4]
[330289857,1719234652924,-500.0,0.00019726,4]
[330289858,1719234652934,-500.0,0.00019726,4]
[330289859,1719234652944,-1021.32,0.00019726,4]
[330289860,1719234652953,-500.0,0.00019726,4]
[330289861,1719234652963,-500.0,0.00019726,4]
[330289862,1719234652973,-231.673429,0.00019726,2]
[330289863,1719234652983,-500.0,0.00019726,4]
[330289864,1719234652992,-231.673429,0.00019726,2]
[330289865,1719234653002,-500.0,0.00019726,4]
[330289866,1719234653012,-609.74,0.00019726,4]
[330289867,1719234653022,-2129.68,0.00019726,4]
[330289868,1719234653031,-523.1,0.00019726,4]
[330289869,1719234653040,-500.0,0.00019726,4]
[330289870,1719234653050,-604.89,0.00019726,4]
[330289871,1719234653060,-500.0,0.00019726,4]
[330289872,1719234653069,-500.0,0.00019726,4]
[330289873,1719234653078,-518.22,0.00019726,4]
[330289874,1719234653088,-539.45,0.00019726,4]
[330289875,1719234653098,-5685.35,0.00019726,4]
[330289876,1719234653107,-500.0,0.00019726,4]
[330289877,1719234653117,-8388.92,0.00019726,4]
[330289878,1719234653130,-788.23,0.00019726,4]
[330289879,1719234653139,-931.76,0.00019726,4]
[330289880,1719234653149,-558.11,0.00019726,4]
[330289881,1719234653158,-500.0,0.00019726,4]
[330289882,1719234653168,-589.44,0.00019726,4]
[330289883,1719234653177,-500.0,0.00019726,4]
[330289884,1719234653187,-500.0,0.00019726,4]
[330289885,1719234653197,-500.0,0.00019726,4]
[330289886,1719234653207,-500.0,0.00019726,4]
[330289887,1719234653216,-552.26,0.00019726,4]
[330289888,1719234653226,-500.0,0.00019726,4]
[330289889,1719234653235,-598.81,0.00019726,4]
[330289890,1719234653245,-500.0,0.00019726,4]
[330289891,1719234653254,-500.0,0.00019726,4]
[330289892,1719234653263,-515.94,0.00019726,4]
[330289893,1719234653273,-500.0,0.00019726,4]
[330289894,1719234653283,-1333.15,0.00019726,4]
[330289895,1719234653292,-1076.06,0.00019726,4]
[330289896,1719234653302,-500.0,0.00019726,4]
[330289897,1719234653311,-479.42274976,0.00019726,4]
[330289898,1719234653320,-507.36,0.00019726,4]
[330289899,1719234653330,-500.0,0.00019726,4]
[330289900,1719234653339,-500.0,0.00019726,4]
[330289901,1719234653348,-1022.66,0.00019726,4]
[330289902,1719234653358,-500.0,0.00019726,4]
[330289903,1719234653367,-500.0,0.00019726,4]
[330289904,1719234653379,-4095.82,0.00019726,4]
[330289905,1719234653388,-500.0,0.00019726,4]
[330289906,1719234653397,-500.0,0.00019726,4]
[330289907,1719234653406,-670.27,0.00019726,4]
[330289908,1719234653416,-500.0,0.00019726,4]
[330289909,1719234653426,-587.18,0.00019726,4]
[330289910,1719234653436,-500.0,0.00019726,4]
[330289911,1719234653446,-500.0,0.00019726,4]
[330289912,1719234653455,-500.0,0.00019726,4]
[330289913,1719234653465,-500.0,0.00019726,4]
[330289914,1719234653474,-500.0,0.00019726,4]
[330289915,1719234653483,-599.34,0.00019726,4]
[330289916,1719234653493,-1195.25,0.00019726,4]
[330289917,1719234653502,-833.51,0.00019726,4]
[330289918,1719234653512,-500.0,0.00019726,4]
[330289919,1719234653524,-675.38,0.00019726,4]
[330289920,1719234653534,-1029.66,0.00019726,4]
[330289921,1719234653543,-500.0,0.00019726,4]
[330289922,1719234653553,-500.0,0.00019726,4]
[330289923,1719234653564,-500.0,0.00019726,4]
[330289924,1719234653574,-599.32,0.00019726,4]
[330289925,1719234653583,-500.0,0.00019726,4]
[330289926,1719234653593,-751.48,0.00019726,4]
[330289927,1719234653606,-504.75,0.00019726,4]
[330289928,1719234653617,-622.88,0.00019726,4]
[330289929,1719234653628,-812.04,0.00019726,4]
[330289930,1719234653638,-500.0,0.00019726,4]
[330289931,1719234653647,-500.0,0.00019726,4]
[330289932,1719234653657,-1838.7,0.00019726,4]
[330289933,1719234653667,-500.0,0.00019726,4]
[330289934,1719234653676,-732.02,0.00019726,4]
[330289935,1719234653686,-500.0,0.00019726,4]
[330289936,1719234653695,-548.92,0.00019726,4]
[330289937,1719234653704,-500.0,0.00019726,4]
[330289938,1719234653713,-500.0,0.00019726,4]
[330289939,1719234653723,-1104.05,0.00019726,4]
[330289940,1719234653732,-500.0,0.00019726,4]
[330289941,1719234653741,-790.0,0.00019726,4]
[330289942,1719234653750,-265.07945258,0.00019726,4]
[330289943,1719234653761,-500.0,0.00019726,4]
[330289944,1719234653770,-500.0,0.00019726,4]
[330289945,1719234653780,-950.44,0.00019726,4]
[330289946,1719234653839,-500.0,0.00019726,4]
[330289947,1719234653848,-775.48,0.00019726,4]
[330289948,1719234653858,-3276.0,0.00019726,4]
[330289949,1719234653868,-500.0,0.00019726,4]
[330289950,1719234653878,-713.29,0.00019726,4]
[330289951,1719234653887,-500.0,0.00019726,4]
[330289952,1719234653896,-500.0,0.00019726,4]
[330289953,1719234653906,-500.0,0.00019726,4]
[330289954,1719234653915,-500.0,0.00019726,4]
[330289955,1719234653924,-803.86,0.00019726,4]
[330289956,1719234653934,-832.62,0.00019726,4]
[330289957,1719234653943,-500.0,0.00019726,4]
[330289958,1719234653952,-832.67,0.00019726,4]
[330289959,1719234653961,-997.41,0.00019726,4]
[330289960,1719234653970,-689.81,0.00019726,4]
[330289961,1719234653979,-500.0,0.00019726,4]
[330289962,1719234653989,-500.0,0.00019726,4]
[330289963,1719234653998,-500.0,0.00019726,4]
[330289964,1719234654008,-1136.57,0.00019726,4]
[330289965,1719234654017,-594.74,0.00019726,4]
[330289966,1719234654027,-500.0,0.00019726,4]
[330289967,1719234654036,-500.0,0.00019726,4]
[330289968,1719234654046,-500.0,0.00019726,4]
[330289969,1719234654055,-556.0,0.00019726,4]
[330289970,1719234654064,-500.0,0.00019726,4]
[330289971,1719234654074,-500.0,0.00019726,4]
[330289972,1719234654083,-2120.74,0.00019726,4]
[330289973,1719234654093,-500.0,0.00019726,4]
[330289974,1719234654102,-1028.46,0.00019726,4]
[330289975,1719234654111,-500.0,0.00019726,4]
[330289976,1719234654120,-500.0,0.00019726,4]
[330289977,1719234654132,-747.27,0.00019726,4]
[330289978,1719234654141,-170.059563,0.00019726,2]
[330289979,1719234654150,-622.5,0.00019726,4]
[330289980,1719234654160,-500.0,0.00019726,4]
[330289981,1719234654169,-500.0,0.00019726,4]
[330289982,1719234654178,-1256.7,0.00019726,4]
[330289983,1719234654187,-170.059563,0.00019726,2]
[330289984,1719234654196,-500.0,0.00019726,4]
[330289985,1719234654205,-500.0,0.00019726,4]
[330289986,1719234654215,-1233.58,0.00019726,4]
[330289987,1719234654224,-1155.94,0.00019726,4]
[330289988,1719234654233,-500.0,0.00019726,4]
[330289989,1719234654243,-825.41,0.00019726,4]
[330289990,1719234654252,-1536.4,0.00019726,4]
[330289991,1719234654261,-500.0,0.00019726,4]
[330289992,1719234654270,-500.0,0.00019726,4]
[330289993,1719234654279,-616.11,0.00019726,4]
[330289994,1719234654289,-766.48,0.00019726,4]
[330289995,1719234654298,-500.0,0.00019726,4]
[330289996,1719234654307,-698.01,0.00019726,4]
[330289997,1719234654317,-1447.35,0.00019726,4]
[330289998,1719234654326,-1293.45,0.00019726,4]
[330289999,1719234654336,-1214.1,0.00019726,4]
[330290000,1719234654345,-500.0,0.00019726,4]
[330290001,1719234654355,-500.0,0.00019726,4]
[330290002,1719234654364,-500.0,0.00019726,4]
[330290003,1719234654373,-1161.02,0.00019726,4]
[330290004,1719234654385,-500.0,0.00019726,4]
[330290005,1719234654394,-500.0,0.00019726,4]
[330290006,1719234654403,-500.0,0.00019726,4]
[330290007,1719234654412,-546.3,0.00019726,4]
[330290008,1719234654421,-500.0,0.00019726,4]
[330290009,1719234654431,-1083.99,0.00019726,4]
[330290010,1719234654440,-1624.6,0.00019726,4]
[330290011,1719234654449,-500.0,0.00019726,2]
[330290012,1719234654459,-500.0,0.00019726,4]
[330290013,1719234654468,-500.0,0.00019726,4]
[330290014,1719234654477,-746.16,0.00019726,4]
[330290015,1719234654487,-841.88,0.00019726,4]
[330290016,1719234654496,-1918.02,0.00019726,4]
[330290017,1719234654506,-1003.97,0.00019726,4]
[330290018,1719234654515,-500.0,0.00019726,4]
[330290019,1719234654531,-500.0,0.00019726,4]
[330290020,1719234654541,-500.0,0.00019726,4]
[330290021,1719234654550,-2470.72,0.00019726,4]